[Event "*** Titled Tuesday Blitz"]
[Site "Chess.com"]
[Date "2021.02.02"]
[Round "11"]
[White "Fluke180"]
[Black "szachuspl"]
[Result "0-1"]
[WhiteElo "2444"]
[BlackElo "2544"]
[TimeControl "180+1"]
[EndTime "12:07:05 PST"]
[Termination "szachuspl won by resignation"]

1. d4 {[%clk 0:02:59.6]} 1... Nf6 {[%clk 0:02:59.4]} 2. Nc3 {[%clk 0:02:59.8]}
2... d5 {[%clk 0:02:56.6]} 3. Bg5 {[%clk 0:03:00]} 3... Bf5 {[%clk 0:02:53.1]}
4. Bxf6 {[%clk 0:02:57.5]} 4... exf6 {[%clk 0:02:52.9]} 5. e3 {[%clk 0:02:58]}
5... c6 {[%clk 0:02:52.4]} 6. Bd3 {[%clk 0:02:57.7]} 6... Bxd3 {[%clk
0:02:51.4]} 7. Qxd3 {[%clk 0:02:58.6]} 7... Bd6 {[%clk 0:02:51.7]} 8. Nf3 {[%clk
0:02:58]} 8... O-O {[%clk 0:02:51.9]} 9. O-O {[%clk 0:02:58.7]} 9... Nd7 {[%clk
0:02:51.8]} 10. e4 {[%clk 0:02:59.2]} 10... dxe4 {[%clk 0:02:49.2]} 11. Nxe4
{[%clk 0:03:00.1]} 11... Bc7 {[%clk 0:02:45.4]} 12. c4 {[%clk 0:02:59.8]} 12...
h6 {[%clk 0:02:44.1]} 13. Rad1 {[%clk 0:02:54.8]} 13... f5 {[%clk 0:02:44.5]}
14. Nc3 {[%clk 0:02:50.6]} 14... g6 {[%clk 0:02:44.4]} 15. Rfe1 {[%clk
0:02:49.1]} 15... Re8 {[%clk 0:02:33.6]} 16. Rxe8+ {[%clk 0:02:48]} 16... Qxe8
{[%clk 0:02:34]} 17. Re1 {[%clk 0:02:48.6]} 17... Qd8 {[%clk 0:02:33.4]} 18. Qe3
{[%clk 0:02:48.7]} 18... Bd6 {[%clk 0:02:32.2]} 19. Qxh6 {[%clk 0:02:48.5]}
19... Be7 {[%clk 0:02:28.9]} 20. h4 {[%clk 0:02:47]} 20... Bf6 {[%clk
0:02:27.8]} 21. Ng5 {[%clk 0:02:42]} 21... Nf8 {[%clk 0:02:22.6]} 22. Rd1 {[%clk
0:02:16.5]} 22... Bg7 {[%clk 0:02:21]} 23. Nxf7 {[%clk 0:02:14.9]} 23... Kxf7
{[%clk 0:02:19.4]} 24. Qe3 {[%clk 0:02:09.4]} 24... Qe7 {[%clk 0:02:18.1]} 25.
Qf3 {[%clk 0:02:08.1]} 25... Qxh4 {[%clk 0:02:15.5]} 26. d5 {[%clk 0:02:08]}
26... Qxc4 {[%clk 0:02:11.4]} 27. dxc6 {[%clk 0:02:07.2]} 27... Qxc6 {[%clk
0:02:11.4]} 28. Qe3 {[%clk 0:02:01.2]} 28... Bxc3 {[%clk 0:02:01]} 29. bxc3
{[%clk 0:02:00.4]} 29... a6 {[%clk 0:02:01.2]} 30. Qe5 {[%clk 0:01:55.6]} 30...
Re8 {[%clk 0:01:58.2]} 31. Qh8 {[%clk 0:01:54.1]} 31... Qf6 {[%clk 0:01:58]} 32.
Qh2 {[%clk 0:01:49.1]} 32... f4 {[%clk 0:01:56.5]} 33. Qh3 {[%clk 0:01:48.5]}
33... f3 {[%clk 0:01:55]} 34. gxf3 {[%clk 0:01:47.4]} 34... Re5 {[%clk 0:01:51]}
35. Qc8 {[%clk 0:01:42.9]} 35... Rg5+ {[%clk 0:01:32.7]} 36. Kf1 {[%clk
0:01:42.7]} 36... Qc6 {[%clk 0:01:30.5]} 37. Qd8 {[%clk 0:01:34.5]} 37... Qc4+
{[%clk 0:01:30.4]} 38. Rd3 {[%clk 0:01:32.8]} 38... Re5 {[%clk 0:01:24.2]} 39.
Kg2 {[%clk 0:01:26.9]} 39... Re7 {[%clk 0:01:10.9]} 40. Rd4 {[%clk 0:01:23.7]}
40... Qc7 {[%clk 0:01:00.8]} 41. Qd5+ {[%clk 0:01:21.1]} 41... Ne6 {[%clk
0:00:59.2]} 42. Rh4 {[%clk 0:01:20.3]} 42... Kg7 {[%clk 0:00:56.8]} 43. Qd2
{[%clk 0:01:05.3]} 43... g5 {[%clk 0:00:53]} 44. Rg4 {[%clk 0:00:59]} 44... Nf4+
{[%clk 0:00:49.8]} 45. Kg1 {[%clk 0:00:58.7]} 45... Qe5 {[%clk 0:00:48.6]} 46.
Kh2 {[%clk 0:00:38.7]} 46... Ng6+ {[%clk 0:00:32.6]} 47. Kh3 {[%clk 0:00:38.7]}
47... Kf6 {[%clk 0:00:29.4]} 48. Qd8 {[%clk 0:00:37.7]} 48... Nf4+ {[%clk
0:00:22.6]} 49. Kh2 {[%clk 0:00:37.3]} 49... Ne6+ {[%clk 0:00:22.5]} 50. Kg1
{[%clk 0:00:33.8]} 50... Nxd8 {[%clk 0:00:21.2]} 0-1

[Event "*** Titled Tuesday Blitz"]
[Site "Chess.com"]
[Date "2021.02.02"]
[Round "11"]
[White "rasmussvane"]
[Black "swisspower96"]
[Result "1/2-1/2"]
[WhiteElo "2880"]
[BlackElo "2691"]
[TimeControl "180+1"]
[EndTime "12:07:06 PST"]
[Termination "Game drawn by agreement"]

1. Nf3 {[%clk 0:03:00.9]} 1... d5 {[%clk 0:02:59.8]} 2. d4 {[%clk 0:03:01.2]}
2... Nf6 {[%clk 0:02:59.7]} 3. c4 {[%clk 0:03:01.7]} 3... e6 {[%clk 0:02:59.3]}
4. g3 {[%clk 0:03:01.1]} 4... Be7 {[%clk 0:02:53.1]} 5. Bg2 {[%clk 0:03:01.2]}
5... O-O {[%clk 0:02:53.7]} 6. O-O {[%clk 0:03:01.7]} 6... dxc4 {[%clk
0:02:54.2]} 7. Qc2 {[%clk 0:03:00.6]} 7... a6 {[%clk 0:02:54]} 8. Qxc4 {[%clk
0:02:53.9]} 8... b5 {[%clk 0:02:53.6]} 9. Qc2 {[%clk 0:02:54.2]} 9... Bb7 {[%clk
0:02:54.2]} 10. Bd2 {[%clk 0:02:54.8]} 10... Nc6 {[%clk 0:02:45.7]} 11. e3
{[%clk 0:02:52.5]} 11... Nb4 {[%clk 0:02:41.8]} 12. Bxb4 {[%clk 0:02:23.8]}
12... Bxb4 {[%clk 0:02:41.6]} 13. a3 {[%clk 0:02:24.5]} 13... Be7 {[%clk
0:02:26.5]} 14. Nbd2 {[%clk 0:02:23.6]} 14... Rc8 {[%clk 0:01:43.6]} 15. Nb3
{[%clk 0:02:10.7]} 15... Be4 {[%clk 0:01:40.3]} 16. Qc3 {[%clk 0:01:39.9]} 16...
Qd5 {[%clk 0:01:39.4]} 17. Nbd2 {[%clk 0:01:03.4]} 17... c5 {[%clk 0:01:39]} 18.
Nxe4 {[%clk 0:01:03.8]} 18... Nxe4 {[%clk 0:01:29]} 19. Qa5 {[%clk 0:01:03.8]}
19... Qd6 {[%clk 0:00:59.9]} 20. dxc5 {[%clk 0:00:51.2]} 20... Nxc5 {[%clk
0:00:59.6]} 21. Rad1 {[%clk 0:00:51.2]} 21... Qc7 {[%clk 0:00:56.8]} 22. Qxc7
{[%clk 0:00:48.5]} 22... Rxc7 {[%clk 0:00:57.7]} 23. Nd4 {[%clk 0:00:41.9]}
23... Na4 {[%clk 0:00:48.8]} 24. b4 {[%clk 0:00:33.7]} 24... Bf6 {[%clk
0:00:49.3]} 25. Nc6 {[%clk 0:00:29.5]} 25... Rfc8 {[%clk 0:00:35.6]} 26. Rd6
{[%clk 0:00:19.3]} 26... Nb2 {[%clk 0:00:18.9]} 27. Na5 {[%clk 0:00:09.9]} 27...
Ra7 {[%clk 0:00:18.7]} 28. Nc6 {[%clk 0:00:08.8]} 28... Rac7 {[%clk 0:00:18.8]}
29. Na5 {[%clk 0:00:09.2]} 29... Ra7 {[%clk 0:00:14.6]} 30. Bf3 {[%clk
0:00:07.7]} 30... Be5 {[%clk 0:00:10.3]} 31. Rc6 {[%clk 0:00:06.8]} 31... Rd8
{[%clk 0:00:10]} 32. Rfc1 {[%clk 0:00:06.4]} 32... g6 {[%clk 0:00:10]} 33. Rc8
{[%clk 0:00:06.4]} 33... Rxc8 {[%clk 0:00:10.6]} 34. Rxc8+ {[%clk 0:00:07.2]}
34... Kg7 {[%clk 0:00:11.2]} 35. Bb7 {[%clk 0:00:03.3]} 35... Nc4 {[%clk
0:00:09]} 36. Bc6 {[%clk 0:00:01.7]} 36... Nxa5 {[%clk 0:00:08.3]} 37. bxa5
{[%clk 0:00:02.6]} 37... Bc7 {[%clk 0:00:09]} 38. Ra8 {[%clk 0:00:02.9]} 38...
Rxa8 {[%clk 0:00:08.6]} 39. Bxa8 {[%clk 0:00:03.8]} 39... Bxa5 {[%clk 0:00:08]}
40. Bb7 {[%clk 0:00:04.3]} 40... b4 {[%clk 0:00:08.4]} 41. axb4 {[%clk
0:00:05.1]} 41... Bxb4 {[%clk 0:00:09]} 42. Bxa6 {[%clk 0:00:05.8]} 42... Be7
{[%clk 0:00:08]} 1/2-1/2

[Event "*** Titled Tuesday Blitz"]
[Site "Chess.com"]
[Date "2021.02.02"]
[Round "11"]
[White "Chernobay_Artem"]
[Black "KuzubovYuriy"]
[Result "1-0"]
[WhiteElo "2638"]
[BlackElo "2824"]
[TimeControl "180+1"]
[EndTime "12:07:09 PST"]
[Termination "Chernobay_Artem won by resignation"]

1. d4 {[%clk 0:03:00.9]} 1... Nf6 {[%clk 0:02:57.4]} 2. c4 {[%clk 0:03:01.5]}
2... e6 {[%clk 0:02:57.3]} 3. Nf3 {[%clk 0:03:00.6]} 3... d5 {[%clk 0:02:56.9]}
4. g3 {[%clk 0:02:59.8]} 4... Bb4+ {[%clk 0:02:55.9]} 5. Bd2 {[%clk 0:02:58.7]}
5... Bd6 {[%clk 0:02:55.4]} 6. Nc3 {[%clk 0:02:50.4]} 6... O-O {[%clk
0:02:49.8]} 7. Bg2 {[%clk 0:02:46.7]} 7... c6 {[%clk 0:02:41.2]} 8. Bg5 {[%clk
0:02:45.3]} 8... Nbd7 {[%clk 0:02:37.2]} 9. e4 {[%clk 0:02:22.3]} 9... dxe4
{[%clk 0:02:36.8]} 10. Nxe4 {[%clk 0:02:22.3]} 10... Bb4+ {[%clk 0:02:36.1]} 11.
Bd2 {[%clk 0:02:22]} 11... Bxd2+ {[%clk 0:02:08]} 12. Nexd2 {[%clk 0:02:20.9]}
12... e5 {[%clk 0:01:50.4]} 13. O-O {[%clk 0:02:16.6]} 13... exd4 {[%clk
0:01:46]} 14. Nxd4 {[%clk 0:02:13.6]} 14... Nc5 {[%clk 0:01:37.1]} 15. N2b3
{[%clk 0:02:04]} 15... Bg4 {[%clk 0:01:18.5]} 16. Qc2 {[%clk 0:01:57.1]} 16...
Nxb3 {[%clk 0:00:54.9]} 17. Nxb3 {[%clk 0:01:58]} 17... Re8 {[%clk 0:00:52]} 18.
Rfe1 {[%clk 0:01:53.3]} 18... Qc7 {[%clk 0:00:47.8]} 19. Qc3 {[%clk 0:01:46.5]}
19... h6 {[%clk 0:00:44.1]} 20. h3 {[%clk 0:01:35.2]} 20... Bh5 {[%clk
0:00:39.1]} 21. Nc5 {[%clk 0:01:33.8]} 21... Bg6 {[%clk 0:00:35.2]} 22. Rad1
{[%clk 0:01:31.3]} 22... Rad8 {[%clk 0:00:31.3]} 23. Rxe8+ {[%clk 0:01:30.2]}
23... Rxe8 {[%clk 0:00:30.7]} 24. Qd2 {[%clk 0:01:14.3]} 24... b6 {[%clk
0:00:19.3]} 25. Na6 {[%clk 0:01:11.7]} 25... Qc8 {[%clk 0:00:17.2]} 26. Nb4
{[%clk 0:01:09.8]} 26... Be4 {[%clk 0:00:15.7]} 27. Qd6 {[%clk 0:01:04.2]} 27...
c5 {[%clk 0:00:11.7]} 28. Nd5 {[%clk 0:01:02.8]} 28... Bxd5 {[%clk 0:00:11.3]}
29. cxd5 {[%clk 0:01:01.5]} 29... Qd8 {[%clk 0:00:10]} 30. Qf4 {[%clk
0:00:59.4]} 30... g5 {[%clk 0:00:08.7]} 31. Qa4 {[%clk 0:00:43.9]} 31... Qd6
{[%clk 0:00:06.7]} 32. Qxa7 {[%clk 0:00:43.8]} 32... Re2 {[%clk 0:00:06.7]} 33.
b3 {[%clk 0:00:38.6]} 33... h5 {[%clk 0:00:06.8]} 34. Qa8+ {[%clk 0:00:34.8]}
34... Kg7 {[%clk 0:00:06.6]} 35. Qc6 {[%clk 0:00:35.4]} 35... Qe5 {[%clk
0:00:05.3]} 36. d6 {[%clk 0:00:34.9]} 36... g4 {[%clk 0:00:04.4]} 37. d7 {[%clk
0:00:33.2]} 37... Qf5 {[%clk 0:00:04.1]} 38. d8=Q {[%clk 0:00:24.5]} 38... Qxf2+
{[%clk 0:00:03.4]} 39. Kh2 {[%clk 0:00:19]} 39... h4 {[%clk 0:00:02.8]} 40.
Qdxf6+ {[%clk 0:00:17.1]} 40... Qxf6 {[%clk 0:00:03.1]} 41. Qxf6+ {[%clk
0:00:17.4]} 41... Kxf6 {[%clk 0:00:04]} 42. hxg4 {[%clk 0:00:16.4]} 42... hxg3+
{[%clk 0:00:03.3]} 43. Kxg3 {[%clk 0:00:17]} 43... Rxa2 {[%clk 0:00:04.1]} 44.
Rd6+ {[%clk 0:00:16.3]} 44... Ke7 {[%clk 0:00:03.9]} 45. Rxb6 {[%clk 0:00:16.7]}
45... Rd2 {[%clk 0:00:04.2]} 46. Be4 {[%clk 0:00:16.6]} 1-0

[Event "*** Titled Tuesday Blitz"]
[Site "Chess.com"]
[Date "2021.02.02"]
[Round "11"]
[White "IMAghasiyevKamal"]
[Black "Sergienko_Sergey"]
[Result "1/2-1/2"]
[WhiteElo "2564"]
[BlackElo "2398"]
[TimeControl "180+1"]
[EndTime "12:07:09 PST"]
[Termination "Game drawn by repetition"]

1. d4 {[%clk 0:03:00.9]} 1... Nf6 {[%clk 0:02:59.2]} 2. c4 {[%clk 0:02:59.6]}
2... c5 {[%clk 0:02:58.4]} 3. Nf3 {[%clk 0:02:58.8]} 3... cxd4 {[%clk
0:02:57.6]} 4. Nxd4 {[%clk 0:02:58.7]} 4... b6 {[%clk 0:02:57.7]} 5. Nc3 {[%clk
0:02:51.9]} 5... Bb7 {[%clk 0:02:57.2]} 6. f3 {[%clk 0:02:40.3]} 6... e6 {[%clk
0:02:55.1]} 7. e4 {[%clk 0:02:40.2]} 7... d6 {[%clk 0:02:54.5]} 8. Be3 {[%clk
0:02:39.1]} 8... Be7 {[%clk 0:02:54.3]} 9. Qa4+ {[%clk 0:02:36.8]} 9... Nbd7
{[%clk 0:02:37.6]} 10. Nc6 {[%clk 0:02:36.2]} 10... Bxc6 {[%clk 0:02:37.5]} 11.
Qxc6 {[%clk 0:02:36.2]} 11... O-O {[%clk 0:02:34.6]} 12. Be2 {[%clk 0:02:34.8]}
12... d5 {[%clk 0:02:05.3]} 13. cxd5 {[%clk 0:02:26.2]} 13... exd5 {[%clk
0:02:02.4]} 14. Nxd5 {[%clk 0:02:25.2]} 14... Nxd5 {[%clk 0:01:59.8]} 15. Qxd5
{[%clk 0:02:24.1]} 15... Bb4+ {[%clk 0:01:26.9]} 16. Kf2 {[%clk 0:02:08.2]}
16... Qe7 {[%clk 0:01:25.8]} 17. Rhd1 {[%clk 0:02:06.5]} 17... Nf6 {[%clk
0:01:24.8]} 18. Qf5 {[%clk 0:01:59.3]} 18... g6 {[%clk 0:01:16.1]} 19. Qb5
{[%clk 0:01:21.9]} 19... Bc5 {[%clk 0:01:08.9]} 20. Bxc5 {[%clk 0:01:15.9]}
20... bxc5 {[%clk 0:01:08.8]} 21. Rac1 {[%clk 0:01:13.9]} 21... Rfc8 {[%clk
0:01:06.2]} 22. b3 {[%clk 0:00:53.8]} 22... Qe5 {[%clk 0:00:54.6]} 23. Qa6
{[%clk 0:00:47.2]} 23... Kg7 {[%clk 0:00:47.5]} 24. Qd6 {[%clk 0:00:45.8]} 24...
Qg5 {[%clk 0:00:39.1]} 25. Qg3 {[%clk 0:00:31.5]} 25... Qh6 {[%clk 0:00:37.9]}
26. Qe5 {[%clk 0:00:27.9]} 26... Re8 {[%clk 0:00:34.7]} 27. Qxc5 {[%clk
0:00:26]} 27... Qxh2 {[%clk 0:00:31.3]} 28. Qe3 {[%clk 0:00:18.5]} 28... Qe5
{[%clk 0:00:23.3]} 29. Rc5 {[%clk 0:00:16.8]} 29... Qb2 {[%clk 0:00:22]} 30. Qd4
{[%clk 0:00:14.7]} 30... Qxa2 {[%clk 0:00:19.7]} 31. Rc6 {[%clk 0:00:14.6]}
31... Re6 {[%clk 0:00:18]} 32. Rxe6 {[%clk 0:00:13.6]} 32... fxe6 {[%clk
0:00:18.1]} 33. Qc4 {[%clk 0:00:11.5]} 33... Re8 {[%clk 0:00:13.4]} 34. Rd6
{[%clk 0:00:11.1]} 34... Qa5 {[%clk 0:00:06.2]} 35. Rxe6 {[%clk 0:00:10.6]}
35... Rxe6 {[%clk 0:00:05.7]} 36. Qxe6 {[%clk 0:00:11]} 36... Qc5+ {[%clk
0:00:05.7]} 37. Kg3 {[%clk 0:00:09.7]} 37... Qg5+ {[%clk 0:00:04.1]} 38. Kf2
{[%clk 0:00:07.7]} 38... Qc5+ {[%clk 0:00:03.5]} 39. Kf1 {[%clk 0:00:04.7]}
39... Qc1+ {[%clk 0:00:02.5]} 40. Kf2 {[%clk 0:00:05.2]} 40... Qc5+ {[%clk
0:00:02.7]} 1/2-1/2

[Event "*** Titled Tuesday Blitz"]
[Site "Chess.com"]
[Date "2021.02.02"]
[Round "11"]
[White "onetowin"]
[Black "guy_levin1"]
[Result "0-1"]
[WhiteElo "1991"]
[BlackElo "2556"]
[TimeControl "180+1"]
[EndTime "12:07:10 PST"]
[Termination "guy_levin1 won on time"]

1. d4 {[%clk 0:03:00.9]} 1... Nf6 {[%clk 0:02:59.5]} 2. Nf3 {[%clk 0:02:59.4]}
2... Nc6 {[%clk 0:02:59.9]} 3. d5 {[%clk 0:02:46.5]} 3... Nb8 {[%clk 0:02:59.4]}
4. Nc3 {[%clk 0:02:42.7]} 4... e6 {[%clk 0:02:59.6]} 5. e4 {[%clk 0:02:35.9]}
5... exd5 {[%clk 0:02:58.1]} 6. e5 {[%clk 0:02:30.7]} 6... Ne4 {[%clk
0:02:54.1]} 7. Nxd5 {[%clk 0:02:05.5]} 7... Bc5 {[%clk 0:02:53.5]} 8. Be3 {[%clk
0:01:58.7]} 8... c6 {[%clk 0:02:35.1]} 9. Bxc5 {[%clk 0:01:52]} 9... Nxc5 {[%clk
0:02:36]} 10. Nc3 {[%clk 0:01:46.1]} 10... O-O {[%clk 0:02:34.9]} 11. Be2 {[%clk
0:01:44.6]} 11... f6 {[%clk 0:02:27.7]} 12. exf6 {[%clk 0:01:27.6]} 12... Qxf6
{[%clk 0:02:20.3]} 13. Qd4 {[%clk 0:01:19.4]} 13... Qxd4 {[%clk 0:02:12.2]} 14.
Nxd4 {[%clk 0:01:19.4]} 14... d5 {[%clk 0:02:12.7]} 15. O-O {[%clk 0:01:11.6]}
15... Ne6 {[%clk 0:01:47.5]} 16. Nxe6 {[%clk 0:01:09.8]} 16... Bxe6 {[%clk
0:01:48.4]} 17. Bf3 {[%clk 0:01:09.8]} 17... Nd7 {[%clk 0:01:44]} 18. Rfe1
{[%clk 0:01:09.4]} 18... Rae8 {[%clk 0:01:26.6]} 19. Re2 {[%clk 0:01:06.1]}
19... Bf5 {[%clk 0:01:23.7]} 20. Rae1 {[%clk 0:01:03.2]} 20... Nf6 {[%clk
0:01:23.3]} 21. Nd1 {[%clk 0:00:55.8]} 21... Bxc2 {[%clk 0:01:18.5]} 22. Ne3
{[%clk 0:00:42.3]} 22... Be4 {[%clk 0:01:04.5]} 23. Ng4 {[%clk 0:00:29.2]} 23...
Nxg4 {[%clk 0:00:53.3]} 24. Bxg4 {[%clk 0:00:30.1]} 24... Bg6 {[%clk 0:00:51.5]}
25. Bd7 {[%clk 0:00:28.3]} 25... Rxe2 {[%clk 0:00:48.2]} 26. Rxe2 {[%clk
0:00:29.2]} 26... Rd8 {[%clk 0:00:48.2]} 27. Bg4 {[%clk 0:00:25.1]} 27... Kf8
{[%clk 0:00:47.4]} 28. f4 {[%clk 0:00:21.8]} 28... Re8 {[%clk 0:00:44.5]} 29.
Rd2 {[%clk 0:00:20]} 29... Be4 {[%clk 0:00:25]} 30. Kf2 {[%clk 0:00:19.8]} 30...
c5 {[%clk 0:00:25.2]} 31. Bf3 {[%clk 0:00:13.9]} 31... Bxf3 {[%clk 0:00:24.8]}
32. Kxf3 {[%clk 0:00:14.8]} 32... d4 {[%clk 0:00:24.9]} 33. Rc2 {[%clk
0:00:14.2]} 33... b6 {[%clk 0:00:24.5]} 34. Rd2 {[%clk 0:00:13.5]} 34... Re3+
{[%clk 0:00:23.3]} 35. Kf2 {[%clk 0:00:12.7]} 35... Ke7 {[%clk 0:00:23.6]} 36.
b4 {[%clk 0:00:11.8]} 36... Kd6 {[%clk 0:00:23.6]} 37. bxc5+ {[%clk 0:00:10.3]}
37... bxc5 {[%clk 0:00:24.5]} 38. Rb2 {[%clk 0:00:08.6]} 38... Ra3 {[%clk
0:00:25]} 39. Rb7 {[%clk 0:00:08]} 39... Rxa2+ {[%clk 0:00:23.9]} 40. Kf3 {[%clk
0:00:08.5]} 40... Ra3+ {[%clk 0:00:20.9]} 41. Ke2 {[%clk 0:00:07.8]} 41... c4
{[%clk 0:00:20.1]} 42. Rxg7 {[%clk 0:00:06]} 42... Ra2+ {[%clk 0:00:20.4]} 43.
Ke1 {[%clk 0:00:03.6]} 43... c3 {[%clk 0:00:20.5]} 44. Rxh7 {[%clk 0:00:03.2]}
44... Ra1+ {[%clk 0:00:20.5]} 45. Ke2 {[%clk 0:00:02.1]} 45... c2 {[%clk
0:00:21.4]} 0-1

[Event "*** Titled Tuesday Blitz"]
[Site "Chess.com"]
[Date "2021.02.02"]
[Round "11"]
[White "Tartody"]
[Black "anon219"]
[Result "1-0"]
[WhiteElo "2670"]
[BlackElo "2865"]
[TimeControl "180+1"]
[EndTime "12:07:14 PST"]
[Termination "Tartody won on time"]

1. Nf3 {[%clk 0:02:58.8]} 1... d5 {[%clk 0:03:00]} 2. b3 {[%clk 0:02:57.4]} 2...
Nf6 {[%clk 0:02:55.4]} 3. Bb2 {[%clk 0:02:57.9]} 3... Bf5 {[%clk 0:02:56.1]} 4.
d3 {[%clk 0:02:57.3]} 4... e6 {[%clk 0:02:56.6]} 5. Nbd2 {[%clk 0:02:57.9]} 5...
h6 {[%clk 0:02:56.9]} 6. g3 {[%clk 0:02:58]} 6... Be7 {[%clk 0:02:55.4]} 7. Bg2
{[%clk 0:02:51.1]} 7... Bh7 {[%clk 0:02:55.3]} 8. e4 {[%clk 0:02:50.1]} 8... O-O
{[%clk 0:02:55.1]} 9. Qe2 {[%clk 0:02:48.2]} 9... c5 {[%clk 0:02:54.9]} 10. e5
{[%clk 0:02:38.2]} 10... Nfd7 {[%clk 0:02:52.5]} 11. h4 {[%clk 0:02:38.8]} 11...
Nc6 {[%clk 0:02:51.7]} 12. g4 {[%clk 0:02:39.2]} 12... Nb4 {[%clk 0:02:35.3]}
13. Nf1 {[%clk 0:02:39.1]} 13... f6 {[%clk 0:02:34]} 14. a3 {[%clk 0:02:34]}
14... Nc6 {[%clk 0:02:31.2]} 15. exf6 {[%clk 0:02:30.9]} 15... Bxf6 {[%clk
0:02:29.2]} 16. Qxe6+ {[%clk 0:02:28.8]} 16... Kh8 {[%clk 0:02:29.4]} 17. O-O-O
{[%clk 0:02:17.6]} 17... Bxb2+ {[%clk 0:02:12.7]} 18. Kxb2 {[%clk 0:02:18.5]}
18... Bg8 {[%clk 0:02:12.4]} 19. Qd6 {[%clk 0:02:09.2]} 19... a5 {[%clk
0:01:58.5]} 20. g5 {[%clk 0:01:57.5]} 20... Nde5 {[%clk 0:01:51.3]} 21. Qxd8
{[%clk 0:01:51.6]} 21... Raxd8 {[%clk 0:01:52.2]} 22. N1d2 {[%clk 0:01:45.2]}
22... Rf4 {[%clk 0:01:48.4]} 23. gxh6 {[%clk 0:01:39.1]} 23... gxh6 {[%clk
0:01:46.7]} 24. Rde1 {[%clk 0:01:39.6]} 24... Nxf3 {[%clk 0:01:43.9]} 25. Nxf3
{[%clk 0:01:34.1]} 25... Rdf8 {[%clk 0:01:44.3]} 26. Ne5 {[%clk 0:01:33.8]}
26... Kg7 {[%clk 0:01:09.6]} 27. Rhg1 {[%clk 0:01:31.7]} 27... Nxe5 {[%clk
0:01:08.3]} 28. Rxe5 {[%clk 0:01:32.6]} 28... Kf6 {[%clk 0:01:08.8]} 29. Rh5
{[%clk 0:01:24.2]} 29... Kg6 {[%clk 0:01:05.5]} 30. Bf3+ {[%clk 0:01:21.3]}
30... Kh7 {[%clk 0:01:03.7]} 31. Bxd5 {[%clk 0:01:19.2]} 31... Bxd5 {[%clk
0:00:13.5]} 32. Rxd5 {[%clk 0:01:20.1]} 32... R4f5 {[%clk 0:00:11.8]} 33. Rd6
{[%clk 0:00:58.9]} 33... R5f6 {[%clk 0:00:10.3]} 34. Rxf6 {[%clk 0:00:44.4]}
34... Rxf6 {[%clk 0:00:11.2]} 35. Rg4 {[%clk 0:00:42]} 35... Rxf2 {[%clk
0:00:09]} 36. b4 {[%clk 0:00:37.6]} 36... axb4 {[%clk 0:00:07.7]} 37. axb4
{[%clk 0:00:38.5]} 37... cxb4 {[%clk 0:00:06]} 38. Rxb4 {[%clk 0:00:39.4]} 38...
Kg6 {[%clk 0:00:06.4]} 39. Rxb7 {[%clk 0:00:37.4]} 39... Kh5 {[%clk 0:00:02.8]}
40. Rg7 {[%clk 0:00:28.5]} 40... Kxh4 {[%clk 0:00:02.4]} 41. d4 {[%clk 0:00:29]}
41... h5 {[%clk 0:00:02.6]} 42. Kc3 {[%clk 0:00:27.5]} 42... Kh3 {[%clk
0:00:02.6]} 43. d5 {[%clk 0:00:27.8]} 43... h4 {[%clk 0:00:02.8]} 44. Kd3 {[%clk
0:00:20.1]} 44... Kh2 {[%clk 0:00:03]} 45. c4 {[%clk 0:00:19.7]} 45... h3 {[%clk
0:00:03.6]} 46. d6 {[%clk 0:00:19.6]} 46... Kh1 {[%clk 0:00:01.2]} 47. d7 {[%clk
0:00:15]} 1-0